[Event "MČR družstev mladších žáků 2024"]
[Site "Harrachov, Czech Republic"]
[Date "2024.06.15"]
[Round "4.6"]
[White "Soukup Erik"]
[Black "Hlavacek Pavel"]
[Result "1-0"]
[TimeControl "25+10"]
[WhiteFideId "23741910"]
[BlackFideId "23761768"]
[WhiteElo "1149"]
[BlackElo "1307"]

1. b3 {[%clk 00:25:19]} d5 {[%clk 00:25:15]} {[%emt 00:00:05]} 2. Bb2 {[%clk
00:25:13]} {[%emt 00:00:16]} c5 {[%clk 00:24:57]} {[%emt 00:00:29]} 3. e3
{[%clk 00:25:11]} {[%emt 00:00:10]} Nf6 {[%clk 00:24:44]} {[%emt 00:00:24]} 4.
Be2 {[%clk 00:25:17]} {[%emt 00:00:04]} Nc6 {[%clk 00:24:46]} {[%emt 00:00:08]}
5. f4 {[%clk 00:25:25]} {[%emt 00:00:02]} Bf5 {[%clk 00:24:32]} {[%emt
00:00:24]} 6. Nf3 {[%clk 00:24:58]} {[%emt 00:00:36]} e6 {[%clk 00:24:09]}
{[%emt 00:00:33]} 7. O-O {[%clk 00:24:59]} {[%emt 00:00:08]} Be7 {[%clk
00:23:38]} {[%emt 00:00:41]} 8. h3 {[%clk 00:24:50]} {[%emt 00:00:20]} O-O
{[%clk 00:21:34]} {[%emt 00:02:14]} 9. d3 {[%clk 00:24:40]} {[%emt 00:00:20]}
Qb6 {[%clk 00:19:28]} {[%emt 00:02:16]} 10. Nbd2 {[%clk 00:23:46]} {[%emt
00:01:04]} Rfd8 {[%clk 00:17:18]} {[%emt 00:02:20]} 11. a4 {[%clk 00:23:12]}
{[%emt 00:00:44]} Rac8 {[%clk 00:16:01]} {[%emt 00:01:27]} 12. Ne5 {[%clk
00:22:42]} {[%emt 00:00:40]} Bd6 {[%clk 00:13:06]} {[%emt 00:03:05]} 13. Ndf3
{[%clk 00:22:06]} {[%emt 00:00:46]} Qc7 {[%clk 00:10:06]} {[%emt 00:03:09]} 14.
Qd2 {[%clk 00:21:24]} {[%emt 00:00:53]} Nd7 {[%clk 00:09:24]} {[%emt 00:00:50]}
15. Nxd7 {[%clk 00:20:56]} {[%emt 00:00:41]} Rxd7 {[%clk 00:08:52]} {[%emt
00:00:42]} 16. Rae1 {[%clk 00:20:35]} {[%emt 00:00:31]} Bg6 {[%clk 00:07:44]}
{[%emt 00:01:16]} 17. Qc3 {[%clk 00:19:55]} {[%emt 00:00:51]} Bf8 {[%clk
00:06:49]} {[%emt 00:01:05]} 18. Ng5 {[%clk 00:18:31]} {[%emt 00:01:34]} h6
{[%clk 00:06:09]} {[%emt 00:00:50]} 19. Nf3 {[%clk 00:18:24]} {[%emt 00:00:16]}
a6 {[%clk 00:04:51]} {[%emt 00:01:29]} 20. Nh4 {[%clk 00:18:17]} {[%emt
00:00:16]} Bh7 {[%clk 00:03:48]} {[%emt 00:01:12]} 21. Nf3 {[%clk 00:16:49]}
{[%emt 00:01:39]} b5 {[%clk 00:03:24]} {[%emt 00:00:34]} 22. axb5 {[%clk
00:16:20]} {[%emt 00:00:39]} axb5 {[%clk 00:03:32]} {[%emt 00:00:02]} 23. Ne5
{[%clk 00:16:18]} {[%emt 00:00:12]} Nxe5 {[%clk 00:03:25]} {[%emt 00:00:18]} 24.
Qxe5 {[%clk 00:16:23]} {[%emt 00:00:04]} Qxe5 {[%clk 00:03:21]} {[%emt
00:00:14]} 25. Bxe5 {[%clk 00:16:28]} {[%emt 00:00:05]} Bd6 {[%clk 00:03:26]}
{[%emt 00:00:05]} 26. Bxd6 {[%clk 00:16:12]} {[%emt 00:00:26]} Rxd6 {[%clk
00:03:33]} {[%emt 00:00:04]} 27. Bf3 {[%clk 00:15:42]} {[%emt 00:00:40]} Ra8
{[%clk 00:02:53]} {[%emt 00:00:49]} 28. Ra1 {[%clk 00:15:39]} {[%emt 00:00:12]}
Rda6 {[%clk 00:02:49]} {[%emt 00:00:13]} 29. Rxa6 {[%clk 00:15:39]} {[%emt
00:00:13]} Rxa6 {[%clk 00:02:57]} {[%emt 00:00:01]} 30. e4 {[%clk 00:15:41]}
{[%emt 00:00:08]} d4 {[%clk 00:02:56]} {[%emt 00:00:11]} 31. e5 {[%clk
00:15:34]} {[%emt 00:00:17]} Ra2 {[%clk 00:02:27]} {[%emt 00:00:35]} 32. Rf2
{[%clk 00:15:33]} {[%emt 00:00:14]} Bg6 {[%clk 00:02:30]} {[%emt 00:00:07]} 33.
g4 {[%clk 00:15:23]} {[%emt 00:00:20]} f6 {[%clk 00:01:57]} {[%emt 00:00:44]}
34. exf6 {[%clk 00:15:17]} {[%emt 00:00:16]} gxf6 {[%clk 00:02:06]} 35. h4
{[%clk 00:14:49]} {[%emt 00:00:38]} Be8 {[%clk 00:01:06]} {[%emt 00:01:09]} 36.
Kg2 {[%clk 00:14:26]} {[%emt 00:00:34]} Kg7 {[%clk 00:00:56]} {[%emt 00:00:20]}
37. Kg3 {[%clk 00:14:31]} {[%emt 00:00:04]} e5 {[%clk 00:00:57]} {[%emt
00:00:09]} 38. fxe5 {[%clk 00:14:27]} {[%emt 00:00:14]} fxe5 {[%clk 00:01:07]}
{[%emt 00:00:01]} 39. Be4 {[%clk 00:14:35]} {[%emt 00:00:02]} Bf7 {[%clk
00:01:06]} {[%emt 00:00:11]} 40. h5 {[%clk 00:14:25]} {[%emt 00:00:20]} c4
{[%clk 00:00:53]} {[%emt 00:00:23]} 41. bxc4 {[%clk 00:14:25]} {[%emt
00:00:10]} bxc4 {[%clk 00:01:02]} 42. dxc4 {[%clk 00:14:12]} {[%emt 00:00:22]}
Bxc4 {[%clk 00:01:11]} 43. Rf3 {[%clk 00:13:51]} {[%emt 00:00:28]} Ra1 {[%clk
00:00:38]} {[%emt 00:00:46]} 44. Bg6 {[%clk 00:13:18]} {[%emt 00:00:43]} Rg1+
{[%clk 00:00:40]} {[%emt 00:00:05]} 45. Kh3 {[%clk 00:13:15]} {[%emt 00:00:16]}
Bf1+ {[%clk 00:00:48]} {[%emt 00:00:03]} 46. Kh2 {[%clk 00:13:16]} {[%emt
00:00:08]} Rxg4 {[%clk 00:00:36]} {[%emt 00:00:22]} 47. Rxf1 {[%clk 00:13:13]}
{[%emt 00:00:13]} Rg5 {[%clk 00:00:34]} {[%emt 00:00:12]} 48. Rf7+ {[%clk
00:13:14]} {[%emt 00:00:08]} Kh8 {[%emt 00:00:03]} 49. Rh7+ {[%clk 00:12:58]}
{[%emt 00:00:25]} Kg8 {[%clk 00:00:51]} {[%emt 00:00:02]} 50. Rxh6 {[%clk
00:13:05]} {[%emt 00:00:03]} Kg7 {[%clk 00:00:54]} {[%emt 00:00:06]} 51. Rh7+
{[%clk 00:13:12]} {[%emt 00:00:03]} Kf6 {[%clk 00:00:58]} {[%emt 00:00:05]} 52.
Rf7+ {[%clk 00:13:17]} {[%emt 00:00:06]} Ke6 {[%clk 00:01:05]} {[%emt
00:00:03]} 53. Rf3 {[%clk 00:13:04]} {[%emt 00:00:21]} e4 {[%clk 00:00:58]}
{[%emt 00:00:18]} 54. Bxe4 {[%clk 00:12:53]} {[%emt 00:00:23]} Rxh5+ {[%clk
00:01:07]} {[%emt 00:00:02]} 55. Kg3 {[%clk 00:12:54]} {[%emt 00:00:07]} Ke5
{[%clk 00:00:44]} {[%emt 00:00:34]} 56. Bd3 {[%clk 00:12:46]} {[%emt 00:00:17]}
Rg5+ {[%clk 00:00:46]} {[%emt 00:00:10]} 57. Kh4 {[%clk 00:12:52]} {[%emt
00:00:04]} Rg1 {[%clk 00:00:48]} {[%emt 00:00:06]} 58. Rf5+ {[%clk 00:12:42]}
{[%emt 00:00:15]} Kd6 {[%clk 00:00:55]} {[%emt 00:00:09]} 59. Rf3 {[%clk
00:12:41]} {[%emt 00:00:09]} Kc5 {[%clk 00:00:38]} {[%emt 00:00:27]} 60. Rg3
{[%clk 00:12:48]} {[%emt 00:00:06]} Ra1 {[%clk 00:00:37]} {[%emt 00:00:10]} 61.
Kg4 {[%clk 00:12:56]} {[%emt 00:00:02]} Kb4 {[%clk 00:00:39]} {[%emt 00:00:05]}
62. Kf4 {[%clk 00:13:02]} {[%emt 00:00:05]} Re1 {[%clk 00:00:43]} {[%emt
00:00:06]} 63. Rg4 {[%clk 00:12:49]} {[%emt 00:00:21]} Kc3 {[%clk 00:00:33]}
{[%emt 00:00:20]} 64. Kf5 {[%clk 00:12:55]} {[%emt 00:00:09]} Re3 {[%clk
00:00:24]} {[%emt 00:00:18]} 65. Rf4 {[%clk 00:12:25]} {[%emt 00:00:41]} Re7
{[%clk 00:00:26]} {[%emt 00:00:07]} 66. Re4 {[%clk 00:12:07]} {[%emt 00:00:29]}
Rc7 {[%clk 00:00:28]} {[%emt 00:00:07]} 67. Ke5 {[%clk 00:12:04]} {[%emt
00:00:12]} Rc5+ {[%clk 00:00:37]} {[%emt 00:00:03]} 68. Kd6 {[%clk 00:12:06]}
{[%emt 00:00:05]} Rg5 {[%clk 00:00:46]} {[%emt 00:00:04]} 69. Re5 {[%clk
00:12:10]} {[%emt 00:00:06]} Rg4 {[%clk 00:00:43]} {[%emt 00:00:12]} 70. Kd5
{[%clk 00:12:13]} {[%emt 00:00:07]} Rh4 {[%clk 00:00:46]} {[%emt 00:00:07]} 71.
Bf5 {[%clk 00:11:26]} {[%emt 00:00:51]} Rf4 {[%clk 00:00:40]} {[%emt 00:00:20]}
72. Bd3 {[%clk 00:10:57]} {[%emt 00:00:41]} Rh4 {[%clk 00:00:41]} {[%emt
00:00:08]} 73. Kc5 {[%clk 00:10:45]} {[%emt 00:00:20]} Rh8 {[%clk 00:00:42]}
{[%emt 00:00:12]} 74. Re4 {[%clk 00:10:34]} {[%emt 00:00:21]} Rc8+ {[%clk
00:00:46]} {[%emt 00:00:04]} 75. Kd6 {[%clk 00:10:13]} {[%emt 00:00:32]} Rb8
{[%clk 00:00:37]} {[%emt 00:00:17]} 76. Rf4 {[%clk 00:09:41]} {[%emt 00:00:44]}
Rb6+ {[%clk 00:00:31]} {[%emt 00:00:13]} 77. Kc5 {[%clk 00:09:47]} {[%emt
00:00:06]} Rb4 {[%clk 00:00:34]} {[%emt 00:00:06]} 78. Rf6 {[%clk 00:09:09]}
{[%emt 00:00:50]} Ra4 {[%clk 00:00:20]} {[%emt 00:00:24]} 79. Rc6 {[%clk
00:08:59]} {[%emt 00:00:20]} Ra7 {[%clk 00:00:17]} {[%emt 00:00:13]} 80. Kb6+
{[%emt 00:00:13]} 1-0



[ePGN "0.1;DGT LiveChess/2.2.6"]

[Event "MČR družstev mladších žáků 2024"]
[Site "Harrachov, Czech Republic"]
[Date "2024.06.15"]
[Round "4.7"]
[White "Fadrny Jachym"]
[Black "Vanek Martin"]
[Result "1-0"]
[TimeControl "25+10"]
[WhiteFideId "23744170"]
[BlackFideId "23769238"]
[WhiteElo "1537"]
[BlackElo "1580"]

1. d4 {[%clk 00:25:15]} {[%emt 00:00:02]} d5 {[%clk 00:25:18]} {[%emt
00:00:03]} 2. c4 {[%clk 00:25:23]} {[%emt 00:00:02]} e6 {[%clk 00:25:26]}
{[%emt 00:00:02]} 3. Nc3 {[%clk 00:25:31]} {[%emt 00:00:01]} Nf6 {[%clk
00:25:35]} {[%emt 00:00:02]} 4. cxd5 {[%clk 00:25:40]} {[%emt 00:00:02]} exd5
{[%clk 00:25:32]} {[%emt 00:00:13]} 5. Bg5 {[%clk 00:25:47]} {[%emt 00:00:02]}
Be7 {[%clk 00:25:40]} {[%emt 00:00:02]} 6. e3 {[%clk 00:25:56]} {[%emt
00:00:02]} O-O {[%clk 00:25:46]} {[%emt 00:00:04]} 7. Bd3 {[%clk 00:26:01]}
{[%emt 00:00:03]} c5 {[%clk 00:25:44]} {[%emt 00:00:13]} 8. dxc5 {[%clk
00:25:12]} {[%emt 00:00:59]} Nbd7 {[%clk 00:25:36]} {[%emt 00:00:18]} 9. b4
{[%clk 00:24:56]} {[%emt 00:00:27]} Ne5 {[%clk 00:23:54]} {[%emt 00:01:52]} 10.
h3 {[%clk 00:23:50]} {[%emt 00:01:16]} Be6 {[%clk 00:23:43]} {[%emt 00:00:22]}
11. Nf3 {[%clk 00:23:41]} {[%emt 00:00:18]} Nxd3+ {[%clk 00:23:14]} {[%emt
00:00:39]} 12. Qxd3 {[%clk 00:23:45]} {[%emt 00:00:06]} a5 {[%clk 00:23:16]}
{[%emt 00:00:09]} 13. b5 {[%clk 00:22:15]} {[%emt 00:01:40]} Bxc5 {[%clk
00:22:32]} {[%emt 00:00:54]} 14. O-O {[%clk 00:22:15]} {[%emt 00:00:10]} Qd6
{[%clk 00:19:41]} {[%emt 00:03:02]} 15. Bxf6 {[%clk 00:20:09]} {[%emt
00:02:16]} gxf6 {[%clk 00:19:46]} {[%emt 00:00:05]} 16. Ne2 {[%clk 00:19:53]}
{[%emt 00:00:25]} Kh8 {[%clk 00:18:38]} {[%emt 00:01:18]} 17. Rac1 {[%clk
00:18:57]} {[%emt 00:01:06]} Rg8 {[%clk 00:17:20]} {[%emt 00:01:28]} 18. Nf4
{[%clk 00:18:52]} {[%emt 00:00:14]} Ba7 {[%clk 00:15:26]} {[%emt 00:02:04]} 19.
Kh1 {[%clk 00:17:44]} {[%emt 00:01:18]} Rad8 {[%clk 00:14:25]} {[%emt
00:01:12]} 20. Nd4 {[%clk 00:16:45]} {[%emt 00:01:08]} Qe5 {[%clk 00:11:49]}
{[%emt 00:02:47]} 21. Rfd1 {[%clk 00:16:13]} {[%emt 00:00:42]} Bb8 {[%clk
00:09:53]} {[%emt 00:02:06]} 22. Nf3 {[%clk 00:13:32]} {[%emt 00:02:52]} Qd6
{[%clk 00:09:43]} {[%emt 00:00:21]} 23. Qc3 {[%clk 00:12:43]} {[%emt 00:00:57]}
Qe7 {[%clk 00:07:46]} {[%emt 00:02:07]} 24. Qxa5 {[%clk 00:11:19]} {[%emt
00:01:34]} Bxf4 {[%clk 00:06:15]} {[%emt 00:01:41]} 25. exf4 {[%clk 00:11:21]}
{[%emt 00:00:07]} Bxh3 {[%clk 00:05:44]} {[%emt 00:00:42]} 26. gxh3 {[%clk
00:09:20]} {[%emt 00:02:11]} Qe4 {[%clk 00:05:51]} {[%emt 00:00:02]} 27. Qc3
{[%clk 00:09:12]} {[%emt 00:00:15]} d4 {[%clk 00:05:52]} {[%emt 00:00:12]} 28.
Qd3 {[%clk 00:08:57]} {[%emt 00:00:25]} Qxf4 {[%clk 00:04:21]} {[%emt
00:01:42]} 29. Rg1 {[%clk 00:07:49]} {[%emt 00:01:17]} Rd5 {[%clk 00:03:17]}
{[%emt 00:01:16]} 30. Rxg8+ {[%clk 00:07:01]} {[%emt 00:00:57]} Kxg8 {[%clk
00:03:24]} {[%emt 00:00:03]} 31. Rg1+ {[%clk 00:07:06]} {[%emt 00:00:05]} Kh8
{[%clk 00:03:07]} {[%emt 00:00:27]} 32. Qa3 {[%clk 00:06:44]} {[%emt 00:00:29]}
Rd8 {[%clk 00:02:15]} {[%emt 00:01:05]} 33. Rg4 {[%clk 00:06:10]} {[%emt
00:00:44]} Qf5 {[%clk 00:01:14]} {[%emt 00:01:12]} 34. Qb3 {[%clk 00:05:44]}
{[%emt 00:00:32]} d3 {[%clk 00:00:54]} {[%emt 00:00:32]} 35. Kg2 {[%clk
00:05:05]} {[%emt 00:00:50]} d2 {[%clk 00:00:40]} {[%emt 00:00:24]} 36. Qd1
{[%clk 00:02:45]} {[%emt 00:02:30]} Qxb5 {[%clk 00:00:45]} {[%emt 00:00:06]} 37.
Rd4 {[%clk 00:01:46]} {[%emt 00:01:09]} Rg8+ {[%clk 00:00:40]} {[%emt
00:00:15]} 38. Rg4 {[%clk 00:01:40]} {[%emt 00:00:15]} Rd8 {[%clk 00:00:45]}
{[%emt 00:00:05]} 39. a4 {[%clk 00:01:31]} {[%emt 00:00:20]} Qd5 {[%clk
00:00:44]} {[%emt 00:00:11]} 40. Rd4 {[%clk 00:01:35]} {[%emt 00:00:06]} Rg8+
{[%clk 00:00:47]} {[%emt 00:00:06]} 41. Kh2 {[%clk 00:01:41]} {[%emt 00:00:04]}
Qc6 {[%clk 00:00:31]} {[%emt 00:00:26]} 42. Rxd2 {[%clk 00:01:45]} {[%emt
00:00:07]} Qc7+ {[%clk 00:00:34]} {[%emt 00:00:06]} 43. Kh1 {[%clk 00:01:54]}
{[%emt 00:00:02]} Qc8 {[%clk 00:00:39]} {[%emt 00:00:05]} 44. Qf1 {[%clk
00:00:55]} {[%emt 00:01:08]} Qc6 {[%clk 00:00:44]} {[%emt 00:00:06]} 45. Rd3
{[%clk 00:01:04]} {[%emt 00:00:02]} Qxa4 {[%clk 00:00:46]} {[%emt 00:00:08]} 46.
Nh2 {[%clk 00:01:05]} {[%emt 00:00:08]} Qe4+ {[%clk 00:00:53]} {[%emt
00:00:03]} 47. f3 {[%clk 00:01:09]} {[%emt 00:00:07]} Qc4 {[%clk 00:00:51]}
{[%emt 00:00:12]} 48. Ng4 {[%clk 00:01:15]} {[%emt 00:00:03]} f5 {[%clk
00:00:40]} {[%emt 00:00:22]} 49. Qa1+ {[%clk 00:01:10]} {[%emt 00:00:15]} f6
{[%clk 00:00:30]} {[%emt 00:00:20]} 50. Qxf6+ {[%clk 00:01:18]} {[%emt
00:00:02]} Rg7 {[%clk 00:00:34]} {[%emt 00:00:06]} 51. Rd8+ {[%clk 00:01:27]}
Qg8 {[%clk 00:00:40]} {[%emt 00:00:04]} 52. Rxg8+ {[%clk 00:01:35]} {[%emt
00:00:02]} Kxg8 {[%clk 00:00:48]} {[%emt 00:00:01]} 53. Nh6+ {[%clk 00:01:43]}
{[%emt 00:00:02]} Kh8 {[%clk 00:00:53]} {[%emt 00:00:05]} 54. Qf8+ {[%clk
00:01:52]} {[%emt 00:00:01]} Rg8 {[%clk 00:01:01]} {[%emt 00:00:02]} 55. Qxg8#
{[%clk 00:02:00]} {[%emt 00:00:02]} 1-0



[ePGN "0.1;DGT LiveChess/2.2.6"]

[Event "MČR družstev mladších žáků 2024"]
[Site "Harrachov, Czech Republic"]
[Date "2024.06.15"]
[Round "4.8"]
[White "Bilek Filip"]
[Black "Trejbal Jindrich"]
[Result "0-1"]
[TimeControl "25+10"]
[WhiteFideId "23763493"]
[BlackFideId "23743948"]
[WhiteElo "1249"]
[BlackElo "1401"]

1. e4 {[%clk 00:25:17]} {[%emt 00:00:02]} e5 {[%clk 00:25:19]} {[%emt
00:00:01]} 2. Nf3 {[%clk 00:25:26]} {[%emt 00:00:02]} Nf6 {[%clk 00:25:27]}
{[%emt 00:00:01]} 3. Nc3 {[%clk 00:25:24]} {[%emt 00:00:12]} Bb4 {[%clk
00:25:35]} {[%emt 00:00:02]} 4. d3 {[%clk 00:25:23]} {[%emt 00:00:11]} Nc6
{[%clk 00:25:39]} {[%emt 00:00:06]} 5. Bd2 {[%clk 00:25:31]} {[%emt 00:00:02]}
O-O {[%clk 00:25:16]} {[%emt 00:00:34]} 6. a3 {[%clk 00:25:36]} {[%emt
00:00:05]} Bxc3 {[%clk 00:25:13]} {[%emt 00:00:13]} 7. Bxc3 {[%clk 00:25:39]}
{[%emt 00:00:06]} Re8 {[%clk 00:24:54]} {[%emt 00:00:30]} 8. g3 {[%clk
00:25:18]} {[%emt 00:00:31]} d5 {[%clk 00:24:37]} {[%emt 00:00:27]} 9. Qe2
{[%clk 00:24:40]} {[%emt 00:00:48]} Bg4 {[%clk 00:23:15]} {[%emt 00:01:32]} 10.
Bg2 {[%clk 00:24:39]} {[%emt 00:00:12]} dxe4 {[%clk 00:22:19]} {[%emt
00:01:05]} 11. dxe4 {[%emt 00:00:14]} Nd4 {[%clk 00:21:32]} {[%emt 00:00:54]}
12. Qd3 {[%clk 00:23:37]} {[%emt 00:01:11]} Nxf3+ {[%clk 00:21:36]} {[%emt
00:00:07]} 13. Bxf3 {[%clk 00:22:47]} {[%emt 00:00:59]} Qxd3 {[%clk 00:21:43]}
{[%emt 00:00:03]} 14. cxd3 {[%clk 00:22:56]} {[%emt 00:00:03]} Bxf3 {[%clk
00:21:51]} {[%emt 00:00:01]} 15. Rg1 {[%clk 00:22:02]} {[%emt 00:01:03]} Rad8
{[%clk 00:21:08]} {[%emt 00:00:53]} 16. Kd2 {[%clk 00:21:19]} {[%emt 00:00:53]}
Bxe4 {[%clk 00:21:08]} {[%emt 00:00:10]} 17. Ke3 {[%clk 00:21:10]} {[%emt
00:00:15]} Rxd3+ {[%clk 00:20:43]} {[%emt 00:00:39]} 18. Ke2 {[%clk 00:21:17]}
{[%emt 00:00:03]} Red8 {[%clk 00:20:36]} {[%emt 00:00:17]} 19. h3 {[%clk
00:15:18]} {[%emt 00:06:09]} Bf3+ {[%clk 00:20:40]} {[%emt 00:00:07]} 20. Kf1
{[%clk 00:14:43]} {[%emt 00:00:45]} Rd1+ {[%clk 00:20:44]} {[%emt 00:00:04]} 21.
Rxd1 {[%clk 00:14:49]} {[%emt 00:00:06]} Rxd1+ {[%clk 00:20:52]} {[%emt
00:00:02]} 22. Be1 {[%clk 00:14:55]} {[%emt 00:00:04]} Ne4 {[%clk 00:20:47]}
{[%emt 00:00:13]} 23. Rg2 {[%clk 00:13:31]} {[%emt 00:01:35]} Nd2+ {[%clk
00:20:34]} {[%emt 00:00:22]} 24. Kg1 {[%clk 00:13:37]} {[%emt 00:00:05]} Rxe1+
{[%clk 00:20:38]} {[%emt 00:00:06]} 25. Kh2 {[%clk 00:13:44]} {[%emt 00:00:03]}
Nf1+ {[%clk 00:20:16]} {[%emt 00:00:32]} 26. Kg1 {[%clk 00:13:50]} {[%emt
00:00:04]} Ne3+ {[%clk 00:20:14]} {[%emt 00:00:11]} 27. Kh2 {[%clk 00:13:55]}
{[%emt 00:00:05]} Nxg2 {[%clk 00:20:20]} {[%emt 00:00:05]} 28. g4 {[%clk
00:10:53]} {[%emt 00:03:12]} g5 {[%clk 00:19:38]} {[%emt 00:00:52]} 29. Kg3
{[%clk 00:10:49]} {[%emt 00:00:14]} Nh4 {[%clk 00:19:21]} {[%emt 00:00:26]} 30.
Kh2 {[%clk 00:10:27]} {[%emt 00:00:30]} Rh1+ {[%clk 00:18:41]} {[%emt
00:00:52]} 31. Kg3 {[%clk 00:10:34]} {[%emt 00:00:04]} Rg1+ {[%clk 00:18:49]}
{[%emt 00:00:02]} 32. Kh2 {[%clk 00:10:41]} {[%emt 00:00:04]} Rg2+ {[%clk
00:18:58]} {[%emt 00:00:01]} 33. Kh1 {[%clk 00:10:48]} {[%emt 00:00:02]} Ng6
{[%clk 00:19:00]} {[%emt 00:00:08]} 34. h4 {[%clk 00:10:49]} {[%emt 00:00:09]}
Nf4 {[%clk 00:19:05]} {[%emt 00:00:05]} 35. hxg5 {[%clk 00:10:48]} {[%emt
00:00:12]} Nh3 {[%clk 00:19:12]} {[%emt 00:00:03]} 36. b4 {[%clk 00:10:40]}
{[%emt 00:00:18]} Nxf2# {[%clk 00:19:20]} {[%emt 00:00:03]} 0-1



[ePGN "0.1;DGT LiveChess/2.2.6"]